bitfinex/quotes_SOLUSD_20240908
["timestamp","ask_amount","ask_price","bid_price","bid_amount"]
[1725775004278,45.0,128.27,128.16,7.139493]
[1725775004279,16.04019868,128.26,128.16,22.310193]
[1725775004502,51.6228,128.25,128.16,16.043393]
[1725775004780,75.0728,128.25,128.18,9.80919534]
[1725775006055,75.0728,128.25,128.19,20.0]
[1725775006480,75.0728,128.25,128.17,9.80919534]
[1725775006683,75.0728,128.25,128.18,20.0]
[1725775007886,51.6228,128.25,128.18,20.0]
[1725775009882,51.6228,128.25,128.19,9.80919534]
[1725775010079,15.0295,128.24,128.2,20.0]
[1725775010265,45.0,128.23,128.2,20.0]
[1725775010662,45.0,128.23,128.19,20.0]
[1725775011274,45.0,128.23,128.18,9.80919534]
[1725775011467,45.0,128.23,128.19,20.0]
[1725775016797,45.0,128.23,128.2,9.80919534]
[1725775016967,15.0295,128.24,128.21,29.80919534]
[1725775017167,15.0295,128.24,128.21,9.80919534]
[1725775017985,6.6228,128.25,128.23,9.80919534]
[1725775019388,45.0,128.24,128.23,9.80919534]
[1725775019589,6.6228,128.25,128.23,29.80919534]
[1725775019776,6.6228,128.25,128.23,9.80919534]
[1725775020477,6.6228,128.25,128.19,20.0]
[1725775020680,6.6228,128.25,128.21,9.80919534]
[1725775020877,6.6228,128.25,128.22,20.0]
[1725775024777,45.0,128.24,128.22,20.0]
[1725775028296,45.0,128.24,128.2,9.80919534]
[1725775028473,45.0,128.24,128.21,20.0]
[1725775032380,6.6228,128.25,128.22,9.80919534]
[1725775032585,6.6228,128.25,128.23,20.0]
[1725775033176,6.6228,128.25,128.22,9.80919534]
[1725775033380,6.6228,128.25,128.23,20.0]
[1725775034508,15.0295,128.28,128.24,9.80919534]
[1725775034509,21.1916,128.28,128.24,9.80919534]
[1725775035288,31.21074189,128.28,128.24,9.80919534]
[1725775036082,45.0,128.27,128.24,9.80919534]
[1725775036904,31.21074189,128.28,128.24,9.80919534]
[1725775037606,31.21074189,128.28,128.23,19.5]
[1725775037794,45.0,128.27,128.23,19.5]
[1725775038176,45.0,128.27,128.23,19.0]
[1725775039006,45.0,128.27,128.23,18.5]
[1725775042792,45.89849868,128.27,128.23,18.5]
[1725775043206,0.89849868,128.27,128.23,18.5]
[1725775043507,0.89849868,128.27,128.24,9.80919534]
[1725775043880,16.18124189,128.28,128.24,9.80919534]
[1725775044082,22.4649,128.31,128.26,9.80919534]
[1725775044311,6.563,128.31,128.28,9.80919534]
[1725775046509,10.01914189,128.3,128.27,9.80919534]
[1725775048593,10.01914189,128.3,128.25,20.0]
[1725775048806,10.01914189,128.3,128.26,9.80919534]
[1725775048991,10.01914189,128.3,128.27,20.0]
[1725775054818,6.563,128.31,128.27,20.0]
[1725775055111,45.0,128.3,128.27,20.0]
[1725775056303,6.563,128.31,128.28,9.80919534]
[1725775056803,45.0,128.3,128.27,20.0]
[1725775067507,60.3797,128.3,128.2,15.2628]
[1725775067743,10.91764057,128.29,128.22,9.80919534]
[1725775067922,45.0,128.28,128.23,20.0]
[1725775068105,0.89849868,128.27,128.23,20.0]
[1725775069536,45.0,128.28,128.23,20.0]
[1725775070114,45.89849868,128.28,128.23,20.0]
[1725775071605,6.6391,128.27,128.23,20.0]
[1725775071804,45.0,128.26,128.23,20.0]
[1725775073427,6.6391,128.27,128.24,9.80919534]
[1725775077036,10.01914189,128.29,128.26,9.80919534]
[1725775077634,22.0188,128.3,128.27,20.0]
[1725775078208,6.6391,128.3,128.27,20.0]
[1725775080518,10.01914189,128.32,128.27,20.0]
[1725775080725,10.01914189,128.32,128.28,9.80919534]
[1725775081423,45.89849868,128.31,128.27,20.0]
[1725775081624,55.91764057,128.31,128.27,20.0]
[1725775082027,55.01914189,128.31,128.27,20.0]
[1725775082215,0.89849868,128.3,128.26,9.80919534]
[1725775082534,0.89849868,128.3,128.27,20.0]
[1725775084736,55.01914189,128.31,128.27,20.0]
[1725775085244,0.89849868,128.3,128.27,20.0]
[1725775088335,55.01914189,128.31,128.27,20.0]
[1725775089121,55.01914189,128.31,128.26,9.80919534]
[1725775089430,55.01914189,128.31,128.27,20.0]
[1725775089929,45.0,128.31,128.27,20.0]
[1725775090134,45.0,128.32,128.27,20.0]
[1725775091741,55.01914189,128.32,128.27,20.0]
[1725775092545,10.91764057,128.31,128.27,20.0]
[1725775092841,45.0,128.3,128.26,20.0]
[1725775093149,0.89849868,128.29,128.26,20.0]
[1725775093335,45.0,128.3,128.26,20.0]
[1725775096829,45.0,128.3,128.26,9.80919534]
[1725775097145,45.0,128.3,128.27,20.0]
[1725775098140,23.45,128.29,128.27,20.0]
[1725775098346,45.0,128.3,128.27,20.0]
[1725775098546,45.0,128.31,128.27,20.0]
[1725775100927,45.89849868,128.31,128.27,20.0]
[1725775101133,55.01914189,128.31,128.25,9.80919534]
[1725775101445,55.01914189,128.31,128.26,20.0]
[1725775104253,78.46914189,128.31,128.26,20.0]
[1725775104547,6.2684,128.29,128.22,29.80919534]
[1725775104763,45.89849868,128.28,128.22,29.80919534]
[1725775106625,45.0,128.28,128.22,29.80919534]
[1725775107349,45.0,128.28,128.24,9.80919534]
[1725775107651,45.0,128.28,128.25,20.0]
[1725775108349,68.45,128.28,128.25,20.0]
[1725775108652,45.0,128.28,128.25,20.0]
[1725775114755,55.91764057,128.28,128.25,20.0]
[1725775115049,55.91764057,128.28,128.22,20.0]
[1725775115242,55.01914189,128.28,128.22,20.0]
[1725775123435,55.01914189,128.28,128.18,16.5451]
[1725775123436,55.01914189,128.28,128.21,9.80919534]
[1725775123637,55.01914189,128.28,128.22,20.0]
[1725775124648,0.89849868,128.27,128.22,20.0]
[1725775124845,0.89849868,128.26,128.21,20.0]
[1725775125453,55.01914189,128.28,128.21,20.0]
[1725775125968,0.89849868,128.27,128.21,20.0]
[1725775126967,0.89849868,128.26,128.21,20.0]
[1725775127262,78.46914189,128.28,128.21,20.0]
[1725775135247,16.31444189,128.27,128.19,29.80919534]
[1725775135446,16.2857,128.25,128.19,29.80919534]
[1725775135874,45.0,128.24,128.19,29.80919534]
[1725775136450,45.89849868,128.24,128.19,29.80919534]
[1725775137055,45.0,128.24,128.19,29.80919534]
[1725775148679,45.0,128.24,128.19,20.0]
[1725775148880,45.0,128.24,128.18,9.80919534]
[1725775149081,51.1333,128.24,128.19,20.0]
[1725775149285,61.42079509,128.24,128.19,20.0]
[1725775150787,60.52229641,128.24,128.19,20.0]
[1725775153484,61.42079509,128.24,128.19,20.0]
[1725775153689,61.42079509,128.24,128.17,9.80919534]
[1725775153887,61.42079509,128.24,128.18,20.0]
[1725775155372,60.52229641,128.24,128.17,9.80919534]
[1725775155688,60.52229641,128.24,128.18,20.0]
[1725775161590,60.52229641,128.24,128.19,9.80919534]
[1725775161897,51.1333,128.24,128.2,20.0]
[1725775165799,6.1333,128.24,128.21,9.80919534]
[1725775166798,6.1333,128.24,128.2,20.0]
[1725775168501,6.1333,128.24,128.18,9.80919534]
[1725775168799,45.0,128.23,128.19,20.0]
[1725775172507,45.0,128.23,128.17,9.80919534]
[1725775172708,45.0,128.23,128.18,20.0]
[1725775175075,45.89849868,128.23,128.18,20.0]
[1725775177511,16.089,128.22,128.18,20.0]
[1725775177895,0.89849868,128.21,128.18,20.0]
[1725775178103,7.28049868,128.21,128.17,20.0]
[1725775178303,7.28049868,128.21,128.16,10.68188834]
[1725775178610,7.28049868,128.21,128.17,20.0]
[1725775182909,6.382,128.21,128.17,20.0]
[1725775183514,6.382,128.21,128.16,10.68188834]
[1725775183705,6.382,128.21,128.17,20.0]
[1725775187212,6.382,128.21,128.18,9.80919534]
[1725775187419,6.382,128.21,128.19,20.0]
[1725775190425,22.2643,128.26,128.2,9.80919534]
[1725775190604,32.28344189,128.26,128.2,9.80919534]
[1725775190917,35.2145812,128.26,128.2,9.80919534]
[1725775191522,35.2145812,128.26,128.19,20.0]
[1725775191815,55.01914189,128.25,128.19,9.80919534]
[1725775192116,55.01914189,128.25,128.2,20.0]
[1725775193620,55.01914189,128.25,128.19,9.80919534]
[1725775193995,55.01914189,128.25,128.2,20.0]
[1725775194321,6.5076,128.24,128.2,20.0]
[1725775194520,45.0,128.23,128.2,20.0]
[1725775201216,6.5076,128.24,128.2,20.0]
[1725775203127,6.5076,128.24,128.2,9.80919534]
[1725775203316,6.5076,128.24,128.21,20.0]
[1725775204810,6.5076,128.22,128.16,0.872693]
[1725775205020,45.0,128.21,128.16,0.872693]
[1725775205807,6.5076,128.22,128.16,10.68188834]
[1725775206126,26.38113931,128.26,128.2,9.80919534]
[1725775206127,22.9476,128.26,128.2,9.80919534]
[1725775206314,22.9476,128.29,128.24,9.80919534]
[1725775206507,22.9476,128.29,128.25,20.0]
[1725775207627,10.01914189,128.28,128.23,9.80919534]
[1725775207926,10.01914189,128.28,128.24,20.0]
[1725775208237,22.9476,128.29,128.24,20.0]
[1725775209822,45.0,128.28,128.24,20.0]
[1725775210020,45.89849868,128.28,128.24,20.0]
[1725775210728,0.89849868,128.27,128.2,9.80919534]
[1725775211114,0.89849868,128.26,128.2,9.80919534]
[1725775212124,0.89849868,128.26,128.16,16.960293]
[1725775212125,78.46914189,128.28,128.19,9.80919534]
[1725775212324,55.01914189,128.28,128.19,9.80919534]
[1725775212943,78.46914189,128.28,128.19,9.80919534]
[1725775213240,55.01914189,128.28,128.2,20.0]
[1725775214934,78.46914189,128.28,128.2,20.0]
[1725775215330,0.89849868,128.27,128.2,20.0]
[1725775215523,0.89849868,128.26,128.2,20.0]
[1725775216931,78.46914189,128.28,128.2,20.0]
[1725775220349,81.40932249,128.28,128.2,20.0]
[1725775221027,81.40932249,128.28,128.19,9.80919534]
[1725775221230,81.40932249,128.28,128.2,20.0]
[1725775221640,22.9476,128.29,128.23,9.80919534]
[1725775221848,22.9476,128.29,128.25,9.80919534]
[1725775222027,22.9476,128.29,128.26,20.0]
[1725775226121,6.4182,128.29,128.27,9.80919534]
[1725775229357,6.4182,128.29,128.26,20.0]
[1725775229544,6.4182,128.29,128.25,20.0]
[1725775231921,6.4182,128.29,128.26,9.80919534]
[1725775232128,6.4182,128.29,128.27,20.0]
[1725775233256,6.4182,128.29,128.26,9.80919534]
[1725775233430,6.4182,128.29,128.27,20.0]
[1725775235953,6.4182,128.29,128.25,9.80919534]
[1725775236130,6.4182,128.29,128.26,20.0]
[1725775242053,6.4182,128.29,128.27,9.80919534]
[1725775242234,6.4182,128.29,128.28,20.0]
[1725775242639,22.9438,128.32,128.28,20.0]
[1725775244759,45.89849868,128.31,128.28,20.0]
[1725775245058,45.89849868,128.31,128.26,20.0]
[1725775245258,45.89849868,128.31,128.25,20.0]
[1725775246432,45.0,128.31,128.25,20.0]
[1725775250359,45.0,128.31,128.25,9.80919534]
[1725775250551,45.0,128.31,128.26,20.0]
[1725775253266,45.0,128.31,128.24,9.80919534]
[1725775253447,45.0,128.31,128.25,20.0]
[1725775255267,0.89849868,128.3,128.25,20.0]
[1725775256666,45.0,128.31,128.25,20.0]
[1725775261267,45.0,128.31,128.26,9.80919534]
[1725775261459,45.0,128.31,128.27,20.0]
[1725775261666,22.9438,128.32,128.28,9.80919534]
[1725775262572,22.9438,128.32,128.29,20.0]
[1725775264161,6.5193,128.32,128.29,20.0]
[1725775264476,15.2042,128.35,128.3,9.80919534]
[1725775264656,15.2042,128.35,128.31,20.0]
[1725775265149,16.10269868,128.35,128.31,20.0]
[1725775265753,15.2042,128.35,128.31,20.0]
[1725775266066,15.2042,128.35,128.32,9.80919534]
[1725775266270,15.2042,128.35,128.33,20.0]
[1725775266879,15.2042,128.35,128.31,20.0]
[1725775268176,16.10269868,128.35,128.31,20.0]
[1725775269489,15.2042,128.35,128.31,20.0]
[1725775273470,15.2042,128.35,128.3,9.80919534]
[1725775273656,15.2042,128.35,128.31,20.0]
[1725775282694,6.6399,128.36,128.32,11.36769067]
[1725775282979,6.6399,128.36,128.33,20.0]
[1725775287065,21.8158,128.39,128.33,20.0]
[1725775287267,21.8158,128.39,128.34,9.80919534]
[1725775287472,21.8158,128.39,128.35,20.0]
[1725775295093,21.8158,128.39,128.36,9.80919534]
[1725775296892,21.8158,128.39,128.35,29.80919534]
[1725775299069,21.8158,128.39,128.37,9.80919534]
[1725775299381,6.6011,128.42,128.38,21.55792316]
[1725775299581,6.6011,128.42,128.4,9.80919534]
[1725775300994,6.6011,128.42,128.38,20.0]
[1725775301177,0.89849868,128.41,128.37,20.0]
[1725775301782,45.89849868,128.41,128.37,20.0]
[1725775302475,45.0,128.41,128.37,20.0]
[1725775313004,45.0,128.41,128.38,9.80919534]
[1725775313306,6.6011,128.42,128.39,20.0]
[1725775313896,15.5439,128.43,128.4,9.80919534]
[1725775316904,6.1108,128.45,128.4,9.80919534]
[1725775317104,6.1108,128.45,128.42,9.80919534]
[1725775321193,6.1108,128.45,128.41,20.0]
[1725775325427,6.1108,128.45,128.42,9.80919534]
[1725775331116,6.3564,128.48,128.44,9.80919534]
[1725775332522,45.0,128.47,128.44,9.80919534]
[1725775333213,55.01914189,128.47,128.41,20.0]
[1725775334131,55.01914189,128.47,128.42,9.80919534]
[1725775334331,45.0,128.47,128.43,20.0]
[1725775338937,45.0,128.47,128.42,9.80919534]
[1725775339227,45.0,128.47,128.43,20.0]
[1725775349927,45.0,128.47,128.41,9.80919534]
[1725775350138,45.0,128.47,128.42,20.0]
[1725775350638,45.0,128.47,128.41,9.80919534]
[1725775350934,45.0,128.47,128.42,20.0]
[1725775358138,6.3564,128.48,128.43,9.80919534]
[1725775358324,6.3564,128.48,128.44,20.0]
[1725775373133,2.96191351,128.5,128.44,20.0]
[1725775373436,45.0,128.5,128.44,20.0]
[1725775384141,0.89849868,128.49,128.44,20.0]
[1725775384345,55.91764057,128.49,128.44,20.0]
[1725775384854,55.01914189,128.49,128.44,20.0]
[1725775386457,45.0,128.49,128.44,20.0]
[1725775392464,8.99007969,128.52,128.46,9.80919534]
[1725775392668,31.38564189,128.53,128.47,20.0]
[1725775392850,34.34503324,128.53,128.47,20.0]
[1725775393840,18.99973324,128.53,128.47,20.0]
[1725775395157,45.0,128.52,128.47,20.0]
[1725775396465,12.97853324,128.53,128.47,20.0]
[1725775398664,10.01914189,128.53,128.48,9.80919534]
[1725775398870,10.01914189,128.53,128.49,20.0]
[1725775399170,22.1952,128.56,128.49,20.0]
[1725775399344,45.0,128.55,128.49,20.0]
[1725775400046,68.46,128.55,128.49,20.0]
[1725775400254,45.0,128.55,128.49,20.0]
[1725775402579,0.89849868,128.54,128.49,20.0]
[1725775402782,9.98303078,128.54,128.48,20.0]
[1725775403061,45.0,128.53,128.48,20.0]
[1725775403571,45.0,128.53,128.48,29.80919534]
[1725775410563,45.0,128.54,128.48,29.80919534]
[1725775410766,45.0,128.55,128.48,29.80919534]
[1725775412762,2.9172174,128.56,128.48,29.80919534]
[1725775412964,10.88152946,128.57,128.48,29.80919534]
[1725775413270,9.98303078,128.56,128.48,29.80919534]
[1725775414161,45.0,128.55,128.48,29.80919534]
[1725775414879,54.98303078,128.55,128.48,29.80919534]
[1725775427966,54.98303078,128.55,128.48,20.0]
[1725775430459,19.51457493,128.57,128.49,9.80919534]
[1725775430680,19.51457493,128.57,128.5,20.0]
[1725775431179,29.49760571,128.57,128.5,20.0]
[1725775431774,45.0,128.56,128.5,20.0]
[1725775434185,12.90920571,128.57,128.51,15.918]
[1725775434389,12.90920571,128.57,128.52,20.0]
[1725775435189,12.90920571,128.57,128.51,25.72719534]
[1725775435686,45.0,128.56,128.52,20.0]
[1725775435887,54.98303078,128.56,128.52,20.0]
[1725775439266,0.89849868,128.55,128.51,15.918]
[1725775439470,9.98303078,128.55,128.48,15.918]
[1725775439793,45.0,128.54,128.49,20.0]
[1725775440191,55.88152946,128.54,128.49,20.0]
[1725775440584,54.98303078,128.54,128.49,20.0]
[1725775440900,23.46,128.53,128.49,20.0]
[1725775441192,45.0,128.52,128.49,20.0]
[1725775441597,45.0,128.53,128.49,20.0]
[1725775462114,15.616,128.56,128.49,20.0]
[1725775462284,45.0,128.55,128.49,20.0]
[1725775462612,12.90920571,128.57,128.49,29.80919534]
[1725775463806,45.0,128.56,128.49,29.80919534]
[1725775469490,45.0,128.56,128.49,20.0]
[1725775472010,7.823,128.6,128.52,9.80919534]
[1725775472187,10.79918334,128.6,128.53,20.0]
[1725775474212,45.0,128.59,128.53,20.0]
[1725775490902,45.0,128.59,128.53,21.55583927]
[1725775492313,45.0,128.59,128.53,20.0]
[1725775492528,45.0,128.59,128.55,15.3374]
[1725775492711,0.872693,128.61,128.56,20.0]
[1725775493127,7.823,128.6,128.56,20.0]
[1725775504211,8.72149868,128.6,128.56,20.0]
[1725775504421,45.0,128.59,128.56,20.0]
[1725775506035,45.0,128.59,128.53,20.0]
[1725775510737,0.89849868,128.58,128.53,20.0]
[1725775510926,0.89849868,128.57,128.53,20.0]
[1725775512641,0.89849868,128.57,128.49,25.31709534]
[1725775514154,0.89849868,128.57,128.5,20.0]
[1725775515142,3.89863056,128.57,128.5,20.0]
[1725775515342,3.89863056,128.57,128.46,6.0182]
[1725775515343,6.3931,128.55,128.46,21.5261]
[1725775515663,45.0,128.54,128.46,25.31709534]
[1725775516754,45.0,128.54,128.47,20.0]
[1725775519547,45.0,128.54,128.48,9.80919534]
[1725775519741,45.0,128.54,128.49,20.0]
[1725775520847,6.3931,128.55,128.49,20.0]
[1725775531235,20.02543056,128.57,128.49,20.0]
[1725775531435,45.0,128.56,128.49,20.0]
[1725775532261,45.0,128.56,128.5,24.81909534]
[1725775532436,45.0,128.57,128.51,20.0]
[1725775535239,54.98303078,128.57,128.51,20.0]
[1725775535447,9.98303078,128.56,128.51,20.0]
[1725775535750,45.89849868,128.55,128.51,20.0]
[1725775536139,45.0,128.55,128.51,20.0]
[1725775537564,45.89849868,128.55,128.51,20.0]
[1725775537953,45.0,128.55,128.51,20.0]
[1725775553868,0.89849868,128.54,128.47,16.2401]
[1725775554064,10.88152946,128.54,128.48,20.0]
[1725775554380,45.0,128.53,128.48,20.0]
[1725775554558,0.89849868,128.52,128.48,20.0]
[1725775554759,0.89849868,128.51,128.48,20.0]
[1725775557656,45.89849868,128.53,128.48,20.0]
[1725775558954,45.0,128.53,128.48,20.0]
[1725775566366,45.89849868,128.53,128.48,20.0]
[1725775566566,0.89849868,128.53,128.48,20.0]
[1725775567494,45.0,128.54,128.48,20.0]
[1725775567790,47.92604319,128.55,128.48,20.0]
[1725775567978,45.0,128.55,128.48,20.0]
[1725775568172,68.42,128.55,128.48,20.0]
[1725775568590,45.0,128.55,128.48,20.0]
[1725775587183,0.89849868,128.54,128.48,20.0]
[1725775587500,45.0,128.54,128.48,20.0]
[1725775587890,45.0,128.55,128.48,20.0]
[1725775598613,2.91904898,128.56,128.49,9.80919534]
[1725775598786,6.6101,128.57,128.5,20.0]
[1725775600016,45.0,128.56,128.5,20.0]
[1725775602099,12.99621417,128.57,128.5,35.9834]
[1725775602304,12.99621417,128.57,128.51,9.80919534]
[1725775602598,3.01318339,128.57,128.52,20.0]
[1725775602910,32.12647961,128.58,128.52,20.0]
[1725775603084,42.10951039,128.58,128.52,20.0]
[1725775603288,9.98303078,128.58,128.52,20.0]
[1725775603804,45.0,128.57,128.52,20.0]
[1725775610114,45.0,128.57,128.53,9.80919534]
[1725775618427,12.96709551,128.58,128.54,15.584]
[1725775619512,8.678693,128.61,128.54,15.584]
[1725775619715,8.678693,128.61,128.55,29.80919534]
[1725775620432,7.806,128.6,128.55,29.80919534]
[1725775620937,8.70449868,128.6,128.55,29.80919534]
[1725775621236,7.806,128.6,128.55,29.80919534]
[1725775621617,45.0,128.59,128.55,29.80919534]
[1725775628032,0.89849868,128.58,128.55,20.0]
[1725775628830,54.98303078,128.59,128.55,20.0]
[1725775629025,54.98303078,128.59,128.54,15.584]
[1725775629327,0.89849868,128.58,128.54,15.584]
[1725775629535,0.89849868,128.58,128.55,20.0]
[1725775629729,54.98303078,128.59,128.55,20.0]
[1725775629927,45.0,128.59,128.55,20.0]
[1725775630129,8.678693,128.61,128.55,20.0]
[1725775630130,52.806,128.6,128.55,20.0]
[1725775635453,7.806,128.6,128.56,9.80919534]
[1725775635746,7.806,128.6,128.57,20.0]
[1725775636420,8.678693,128.61,128.57,20.0]
[1725775636921,52.806,128.6,128.57,20.0]
[1725775637631,52.806,128.6,128.56,20.0]
[1725775650035,52.806,128.6,128.55,20.0]
[1725775651364,8.678693,128.61,128.57,9.80919534]
[1725775652057,0.89849868,128.6,128.55,29.80919534]
[1725775652555,53.70449868,128.6,128.55,29.80919534]
[1725775655451,45.89849868,128.6,128.55,29.80919534]
[1725775655670,0.89849868,128.6,128.55,29.80919534]
[1725775656653,45.872693,128.61,128.55,29.80919534]
[1725775673771,45.872693,128.61,128.55,20.0]
[1725775674076,45.872693,128.61,128.55,29.80919534]
[1725775677571,51.954193,128.61,128.55,20.0]
[1725775677863,51.954193,128.61,128.55,9.80919534]
[1725775678177,51.954193,128.61,128.56,20.0]
[1725775683578,51.0815,128.61,128.56,20.0]
[1725775696079,6.0352,128.59,128.43,10.0]
[1725775696271,45.89849868,128.58,128.51,9.80919534]
[1725775696596,45.0,128.58,128.52,20.0]
[1725775698697,45.0,128.58,128.53,9.80919534]
[1725775698859,45.0759438,128.58,128.54,20.0]
[1725775702702,0.0759438,128.58,128.55,9.80919534]
[1725775702884,0.0759438,128.58,128.56,20.0]
[1725775703080,0.0759438,128.58,128.57,11.36464312]
[1725775703398,0.0759438,128.58,128.57,45.08629534]
[1725775703589,0.8725569,128.62,128.61,9.80919534]
[1725775703792,16.0652,128.68,128.61,54.80919534]
[1725775704082,22.1004,128.71,128.66,9.80919534]
[1725775704487,22.1004,128.71,128.67,20.0]
[1725775707297,45.0,128.7,128.67,20.0]
[1725775708476,45.0,128.7,128.65,20.0]
[1725775710784,0.89849868,128.69,128.62,9.80919534]
[1725775711499,45.0,128.7,128.62,9.80919534]
[1725775712094,45.0,128.7,128.63,20.0]
[1725775713999,45.0,128.7,128.64,9.80919534]
[1725775714207,45.0,128.7,128.65,20.0]
[1725775714583,22.1004,128.71,128.65,20.0]
[1725775715683,22.99889868,128.71,128.65,20.0]
[1725775715888,45.0,128.7,128.65,20.0]
[1725775724008,45.0,128.7,128.64,20.0]
[1725775729803,45.0,128.7,128.64,21.55444135]
[1725775729999,45.0,128.7,128.64,20.0]
[1725775730212,45.0,128.7,128.65,11.36353909]
[1725775730389,45.0,128.7,128.66,20.0]
[1725775733126,22.1004,128.71,128.66,20.0]
[1725775740604,45.0,128.7,128.66,20.0]
[1725775742127,22.1004,128.71,128.66,20.0]
[1725775743125,6.0352,128.71,128.66,20.0]
[1725775749109,45.0,128.7,128.66,20.0]
[1725775750412,6.0352,128.71,128.66,20.0]
[1725775758327,45.0,128.7,128.66,20.0]
[1725775764819,45.0,128.7,128.63,9.80919534]
[1725775765022,45.0,128.7,128.64,20.0]
[1725775766836,45.0,128.7,128.65,9.80919534]
[1725775767023,45.0,128.7,128.66,20.0]
[1725775768129,45.0,128.7,128.61,22.0908]
[1725775768130,45.0,128.7,128.64,9.80919534]
[1725775768337,45.0,128.7,128.65,20.0]
[1725775782148,45.0,128.7,128.66,9.80919534]
[1725775782450,21.8309,128.74,128.68,9.80919534]
[1725775783251,34.71178971,128.74,128.68,9.80919534]
[1725775784851,45.0,128.73,128.68,9.80919534]
[1725775786055,45.0,128.73,128.65,35.9473]
[1725775786241,45.0,128.73,128.68,9.80919534]
[1725775786435,54.98245279,128.73,128.68,9.80919534]
[1725775788232,54.98245279,128.73,128.65,35.9473]
[1725775788435,54.98245279,128.73,128.66,9.80919534]
[1725775788745,54.98245279,128.73,128.67,20.0]
[1725775791740,54.98245279,128.73,128.66,29.80919534]
[1725775793043,24.72933692,128.74,128.68,9.80919534]
[1725775793242,34.71178971,128.74,128.66,29.80919534]
[1725775793761,58.13178971,128.74,128.66,29.80919534]
[1725775794059,9.98245279,128.73,128.66,29.80919534]
[1725775794259,45.0,128.72,128.66,29.80919534]
[1725775796057,45.0,128.72,128.66,20.0]
[1725775796363,45.0,128.72,128.65,20.0]
[1725775799943,45.0,128.72,128.65,9.80919534]
[1725775800258,45.0,128.72,128.66,20.0]
[1725775800766,6.3259,128.71,128.66,20.0]
[1725775800953,45.0,128.7,128.66,20.0]
[1725775805572,62.44819868,128.7,128.66,20.0]
[1725775805754,62.44819868,128.7,128.58,16.5514]
[1725775805755,7.22439868,128.69,128.58,16.5514]
[1725775806069,45.0,128.68,128.6,9.80919534]
[1725775806249,45.0,128.68,128.58,16.5514]
[1725775806250,15.135,128.67,128.58,16.5514]
[1725775806449,45.0,128.66,128.59,9.80919534]
[1725775807560,45.0,128.66,128.61,9.80919534]
[1725775807765,45.0,128.66,128.62,20.0]
[1725775813280,15.135,128.67,128.63,9.80919534]
[1725775813476,15.135,128.67,128.64,20.0]
[1725775825761,45.0,128.66,128.64,20.0]
[1725775830798,45.0,128.66,128.6,9.80919534]
[1725775830969,45.0,128.66,128.61,20.0]
[1725775836775,45.0,128.66,128.61,21.55494714]
[1725775836986,45.0,128.66,128.62,9.80919534]
[1725775837175,45.0,128.66,128.63,20.0]
[1725775842795,15.135,128.67,128.63,20.0]
[1725775842988,19.21327348,128.69,128.63,20.0]
[1725775843173,45.0,128.68,128.63,20.0]
[1725775850917,15.7344,128.67,128.58,16.5514]
[1725775851081,51.315,128.66,128.55,16.5149]
[1725775851283,34.30095147,128.65,128.55,26.32409534]
[1725775851507,34.30095147,128.65,128.51,2.96235746]
[1725775851508,6.315,128.62,128.53,9.80919534]
[1725775851705,0.89849868,128.61,128.53,9.80919534]
[1725775851884,0.89849868,128.6,128.53,9.80919534]
[1725775852083,0.89849868,128.6,128.51,16.5149]